bitfinex/quotes_ETHUSD_20240715
["timestamp","ask_amount","ask_price","bid_price","bid_amount"]
[1721075431921,2.90385,3443.7,3443.4,0.0125]
[1721075432245,0.55,3443.8,3443.4,0.0125]
[1721075433148,3.45379,3443.8,3443.4,0.0125]
[1721075434046,2.90353,3444.1,3443.4,0.0125]
[1721075434541,2.9038,3443.8,3443.4,0.0125]
[1721075434954,0.580692,3444.1,3443.4,0.0125]
[1721075434955,2.90362,3444.0,3443.4,0.0125]
[1721075437060,2.90377,3443.8,3443.4,0.0125]
[1721075438160,2.90377,3443.8,3442.8,5.7671]
[1721075438521,2.90377,3443.8,3442.9,2.90451]
[1721075438721,2.90359,3444.1,3443.2,2.90424]
[1721075439054,0.71060356,3444.0,3443.2,2.90424]
[1721075441286,0.71056431,3443.9,3443.2,2.90424]
[1721075441487,0.71056431,3443.9,3443.1,2.90428]
[1721075441865,2.90362,3444.0,3443.1,2.90428]
[1721075442058,0.71059717,3443.9,3443.1,3.50698206]
[1721075442565,2.90362,3444.0,3443.1,3.50698206]
[1721075443190,2.9035,3444.2,3443.1,3.50698206]
[1721075443486,0.55,3444.1,3443.2,5.2975264]
[1721075443703,0.3059,3444.5,3443.3,3.84270723]
[1721075443993,0.71050199,3444.4,3443.5,2.90393]
[1721075444301,0.71050199,3444.4,3443.3,0.93852723]
[1721075444302,0.30362722,3445.0,3444.6,2.90308]
[1721075444467,2.90225,3445.6,3444.7,0.34836125]
[1721075444674,0.71019725,3445.5,3444.8,0.05805256]
[1721075445000,2.90225,3445.6,3444.8,0.05805256]
[1721075445339,3.61251649,3445.5,3444.6,2.90308]
[1721075445627,0.71017649,3445.4,3444.6,2.90308]
[1721075445801,0.71017649,3445.4,3444.6,0.580633]
[1721075446179,3.61260649,3445.4,3444.4,2.90325]
[1721075446385,0.71017649,3445.3,3444.6,2.90308]
[1721075447701,2.90243,3445.4,3444.6,2.90308]
[1721075447885,0.71024238,3445.3,3444.6,2.90308]
[1721075448299,2.90243,3445.4,3444.4,2.90325]
[1721075448496,3.6127494,3445.3,3444.4,3.483921]
[1721075448685,2.90251,3445.3,3444.4,2.90325]
[1721075449001,2.9026,3445.2,3444.0,5.90358]
[1721075449201,2.9026,3445.2,3444.3,2.90334]
[1721075449417,2.9026,3445.2,3444.0,5.90358]
[1721075449418,2.90276,3445.0,3444.0,5.90352]
[1721075449589,2.90285,3444.9,3444.1,3.0]
[1721075450202,2.90285,3444.9,3444.0,1.119206]
[1721075450203,2.90285,3444.9,3444.0,3.0]
[1721075450509,2.90276,3445.0,3443.8,2.90375]
[1721075450510,2.90301,3444.7,3443.8,2.90375]
[1721075450717,2.90301,3444.7,3443.9,2.90368]
[1721075451205,2.90301,3444.7,3443.7,2.3848]
[1721075451531,3.483595,3444.7,3443.7,5.28861]
[1721075451734,3.483595,3444.7,3443.8,2.90376]
[1721075452027,2.90292,3444.8,3443.8,2.96182684]
[1721075452254,2.90353,3444.1,3443.3,0.88045085]
[1721075452525,2.4775,3444.6,3443.1,20.53270206]
[1721075452526,2.90328,3444.4,3443.1,20.53270206]
[1721075452734,0.71047962,3444.3,3443.5,2.904]
[1721075452887,2.90328,3444.4,3443.5,2.904]
[1721075453087,2.90335,3444.3,3443.5,2.904]
[1721075453310,8.6318,3445.0,3443.3,2.90417]
[1721075453311,2.90343,3444.2,3443.3,2.90417]
[1721075453514,2.90343,3444.2,3443.3,4.24529021]
[1721075454302,0.71058971,3444.1,3443.4,2.9041]
[1721075455064,0.71058971,3444.1,3443.1,0.60270206]
[1721075455234,3.45366,3444.0,3443.1,3.0]
[1721075456004,2.90345,3444.2,3443.1,5.90428]
[1721075456323,2.90267,3445.1,3444.0,2.9036]
[1721075456519,0.71034209,3445.0,3444.3,2.90334]
[1721075457254,2.90267,3445.1,3444.3,2.90334]
[1721075457409,3.483187,3445.1,3444.3,2.90334]
[1721075457805,3.483187,3445.1,3444.1,2.9035]
[1721075458645,3.483187,3445.1,3444.0,2.90359]
[1721075459535,3.483187,3445.1,3444.3,2.90333]
[1721075460248,2.90293,3444.8,3443.9,2.90362]
[1721075460462,0.580517,3445.1,3444.1,2.90349]
[1721075460621,2.90269,3445.1,3444.2,2.90337]
[1721075460823,1.21992,3444.3,3444.1,2.90349]
[1721075461144,1.21992,3444.3,3443.7,2.90383]
[1721075461354,1.21992,3444.3,3443.8,2.90375]
[1721075461517,1.21992,3444.3,3443.8,5.477508]
[1721075461926,1.21992,3444.3,3443.8,2.573758]
[1721075462137,1.21992,3444.3,3443.7,2.90385]
[1721075462337,1.21992,3444.3,3444.0,2.90351]
[1721075462546,1.21992,3444.3,3444.2,2.90343]
[1721075463548,1.21992,3444.3,3444.2,5.80686]
[1721075463708,1.21992,3444.3,3444.2,11.71029]
[1721075463912,1.21992,3444.3,3444.2,13.115919]
[1721075466274,2.90098,3447.1,3446.0,2.90185]
[1721075466464,2.90098,3447.1,3446.2,2.90167]
[1721075466968,0.815811,3447.0,3446.2,2.90167]
[1721075467317,0.815811,3447.0,3445.8,2.90206]
[1721075467521,0.815811,3447.0,3445.4,3.0]
[1721075467522,2.90125,3446.8,3445.9,2.90199]
[1721075467721,2.90125,3446.8,3446.0,2.90189]
[1721075467935,2.90125,3446.8,3445.7,2.90216]
[1721075467936,2.90125,3446.8,3445.8,2.90203]
[1721075468253,2.90125,3446.8,3445.9,2.90198]
[1721075468953,2.729,3447.1,3445.4,2.90241]
[1721075468954,2.9016,3446.4,3445.4,2.90241]
[1721075469264,2.90189,3446.1,3445.1,7.4]
[1721075469412,3.45192,3446.0,3444.9,22.83283]
[1721075469612,0.635367,3445.9,3444.9,22.83283]
[1721075470228,2.90151,3446.5,3444.9,19.93]
[1721075470453,5.28011,3446.8,3445.8,2.90208]
[1721075471253,2.90083,3447.3,3445.4,2.3537]
[1721075471460,2.3788,3447.5,3446.1,2.9018]
[1721075471461,2.90114,3447.0,3446.1,2.9018]
[1721075471615,0.580206,3446.9,3446.1,2.9018]
[1721075472116,0.580206,3446.9,3445.8,2.90206]
[1721075472318,6.0118,3447.5,3445.8,2.90206]
[1721075472319,2.90142,3446.6,3445.8,2.90206]
[1721075472850,2.90142,3446.6,3445.6,22.83224]
[1721075472851,5.8029,3446.6,3445.6,22.83224]
[1721075473059,5.329,3446.5,3445.6,22.83224]
[1721075473627,2.4275,3446.5,3445.7,2.90216]
[1721075473849,2.90142,3446.6,3445.7,2.90216]
[1721075474049,1.130266,3446.5,3445.7,2.90216]
[1721075475043,2.90198,3446.0,3444.7,35.20297]
[1721075475257,3.633,3446.2,3444.8,2.90291]
[1721075475258,2.90219,3445.7,3444.8,2.90291]
[1721075475569,2.90251,3445.3,3444.4,7.4]
[1721075475773,2.90261,3445.2,3444.2,19.93]
[1721075475989,2.90247,3445.4,3444.2,22.83341]
[1721075476168,2.90261,3445.2,3444.2,22.83341]
[1721075477265,2.90275,3445.1,3444.2,22.83341]
[1721075478547,0.9844889,3445.4,3444.3,2.90333]
[1721075478548,2.90253,3445.3,3444.3,2.90333]
[1721075478731,0.55,3445.2,3444.3,2.90333]
[1721075478935,0.55,3445.2,3444.3,5.477022]
[1721075479234,3.45261,3445.2,3444.3,2.90333]
[1721075479440,3.45261,3445.2,3444.0,2.90359]
[1721075479441,2.90233,3445.5,3444.7,2.903]
[1721075479862,0.290219,3445.6,3444.8,2.90286]
[1721075480098,2.2919,3446.0,3444.4,3.0]
[1721075480288,2.2919,3446.0,3444.7,2.90294]
[1721075480289,2.90209,3445.8,3444.7,2.90294]
[1721075480576,2.90209,3445.8,3444.8,2.90291]
[1721075480789,0.59249,3445.9,3444.9,2.90281]
[1721075481401,5.80424,3445.8,3444.9,2.90281]
[1721075481540,2.9021,3445.8,3444.3,5.24332]
[1721075481736,1.128649,3445.7,3444.6,2.90308]
[1721075481937,1.128649,3445.7,3444.4,3.824332]
[1721075481938,0.578649,3445.7,3444.9,2.90282]
[1721075482339,5.19382,3446.0,3444.9,2.90277]
[1721075482572,2.90207,3445.9,3444.9,2.90277]
[1721075482790,3.45208,3445.8,3444.4,9.042142]
[1721075482973,0.55,3445.7,3444.4,9.042142]
[1721075483575,2.90233,3445.6,3444.7,2.90299]
[1721075483771,2.90233,3445.5,3444.8,3.0]
[1721075484361,2.90233,3445.5,3444.7,2.90299]
[1721075484362,0.635441,3445.5,3444.3,2.34]
[1721075484563,2.90273,3445.1,3444.3,2.34]
[1721075486114,2.90258,3445.3,3444.3,5.24331]
[1721075486314,0.55,3445.2,3444.3,5.24331]
[1721075486613,3.45258,3445.2,3444.3,5.24331]
[1721075486769,3.45258,3445.2,3444.3,6.357983]
[1721075486968,5.80542,3445.1,3444.3,3.454673]
[1721075487196,2.90268,3445.1,3444.3,2.34]
[1721075488281,3.4526,3445.2,3444.3,5.24331]
[1721075488486,0.55,3445.2,3444.3,5.24331]
[1721075488707,2.90242,3445.4,3444.3,5.24331]
[1721075488708,0.55,3445.3,3444.3,5.24331]
[1721075489017,2.90268,3445.1,3444.3,2.34]
[1721075489627,2.90316,3444.6,3444.3,2.34]
[1721075490197,2.90317,3444.5,3444.3,2.34]
[1721075491900,2.90326,3444.4,3444.3,2.34]
[1721075492096,3.45326,3444.4,3444.3,2.34]
[1721075492301,6.35652,3444.4,3444.3,2.34]
[1721075492525,6.992172,3444.4,3444.3,2.34]
[1721075494008,12.954432,3444.4,3444.3,2.34]
[1721075494203,12.954432,3444.4,3444.3,2.00885635]
[1721075494204,18.410632,3444.4,3444.3,2.00885635]
[1721075494402,2.90412,3443.4,3443.1,27.33]
[1721075494726,2.90412,3443.4,3443.0,7.0]
[1721075496193,2.90419,3443.3,3443.0,7.0]
[1721075496610,2.90412,3443.4,3443.0,7.0]
[1721075497022,2.90419,3443.3,3443.0,7.0]
[1721075498022,6.633,3443.9,3443.0,7.0]
[1721075498230,3.56708,3443.8,3443.0,7.0]
[1721075498414,2.90411,3443.4,3443.0,7.0]
[1721075498615,0.55,3443.3,3443.0,7.0]
[1721075498991,2.4099,3443.5,3443.0,7.0]
[1721075498992,0.55,3443.4,3443.0,7.0]
[1721075499187,2.90435,3443.2,3443.0,7.0]
[1721075499413,0.55,3443.1,3443.0,7.0]
[1721075499619,2.4099,3443.5,3443.0,7.0]
[1721075499828,5.31398,3443.5,3443.0,7.0]
[1721075499999,6.502095,3443.5,3443.0,7.0]
[1721075500207,0.6633,3443.8,3443.0,7.0]
[1721075500408,2.90394,3443.6,3443.0,7.0]
[1721075500615,2.2805,3444.0,3443.0,7.0]
[1721075500616,2.90391,3443.7,3443.0,7.0]
[1721075501035,5.18411,3444.0,3443.0,9.90438]
[1721075501737,2.90382,3443.8,3443.0,9.90438]
[1721075501913,3.712613,3443.8,3443.0,9.90438]
[1721075502450,0.55,3443.7,3443.0,9.90438]
[1721075502601,0.30363653,3444.3,3443.0,7.0]
[1721075502800,3.20700653,3444.3,3443.0,7.0]
[1721075503049,3.059,3444.3,3443.0,7.0]
[1721075503201,2.90391,3443.7,3443.0,7.0]
[1721075503403,2.90396,3443.6,3443.0,7.0]
[1721075504004,0.55,3443.5,3443.0,7.0]
[1721075504852,2.90416,3443.4,3443.0,7.0]
[1721075505003,3.45419,3443.3,3443.0,7.0]
[1721075506535,2.90388,3443.7,3443.0,7.0]
[1721075506735,0.55,3443.6,3443.0,7.0]
[1721075507236,3.45394,3443.6,3443.0,7.0]
[1721075507649,0.55,3443.6,3443.0,7.0]
[1721075507804,3.45385,3443.7,3443.0,7.0]
[1721075508153,2.90395,3443.6,3443.0,7.0]
[1721075508318,0.55,3443.5,3443.0,7.0]
[1721075508809,3.45396,3443.6,3443.0,7.0]
[1721075509603,0.55,3443.6,3443.0,7.0]
[1721075510031,0.55,3443.7,3443.0,7.0]
[1721075510411,3.45385,3443.7,3443.0,7.0]
[1721075510739,0.55,3443.7,3443.0,7.0]
[1721075510940,0.55,3443.8,3443.0,7.990451]
[1721075511142,0.55,3443.8,3443.1,2.90435]
[1721075511909,2.90351,3444.1,3443.3,2.90417]
[1721075512107,0.9117,3444.2,3443.4,2.90408]
[1721075512332,3.633,3444.9,3443.1,2.4805]
[1721075512333,8.98566,3444.9,3443.7,2.90384]
[1721075512545,2.90298,3444.8,3443.9,2.90367]
[1721075513318,2.90262,3445.2,3444.3,2.90326]
[1721075513525,2.90267,3445.1,3444.3,2.90326]
[1721075513926,2.90277,3445.0,3444.1,2.90349]
[1721075514104,0.580544,3444.9,3444.2,2.90342]
[1721075514917,0.580544,3444.9,3444.3,2.90334]
[1721075515119,2.90267,3445.1,3444.3,2.90334]
[1721075516280,2.90267,3445.1,3444.1,2.9035]
[1721075516596,0.55,3445.0,3444.3,2.90334]
[1721075519007,3.45276,3445.0,3444.3,2.90334]
[1721075520403,0.55,3445.0,3444.3,2.90334]
[1721075520703,3.059,3445.6,3444.1,2.9035]
[1721075520704,5.37945,3446.0,3445.2,2.90258]
[1721075520924,2.90241,3445.5,3444.5,7.4]
[1721075521063,2.90272,3445.1,3444.2,22.83342]
[1721075521263,2.90299,3444.8,3444.2,19.93]
[1721075521469,2.90299,3444.8,3443.6,22.93]
[1721075521676,2.90299,3444.8,3444.0,2.90359]
[1721075521981,2.90299,3444.8,3443.8,2.90376]
[1721075522396,2.90299,3444.8,3443.6,25.83393]
[1721075522397,2.90299,3444.8,3443.7,2.90384]
[1721075522568,2.90299,3444.8,3444.0,2.90359]
[1721075522779,2.3056,3444.9,3443.8,1.95597726]
[1721075522780,2.90301,3444.7,3443.8,2.90374]
[1721075523015,3.45317,3444.6,3443.6,22.83389]
[1721075523387,3.45317,3444.6,3443.7,2.90384]
[1721075524208,3.45317,3444.6,3443.5,3.194398]
[1721075524209,2.90332,3444.4,3443.5,3.194398]
[1721075524590,2.90332,3444.4,3443.6,2.90392]
[1721075524917,0.55,3444.6,3443.8,2.90369]
[1721075525126,2.90273,3445.1,3444.2,2.90343]
[1721075525306,3.45273,3445.1,3444.2,2.90343]
[1721075525478,4.320013,3445.1,3444.2,2.90343]
[1721075525874,0.867283,3445.1,3444.3,2.90333]
[1721075526547,2.3175,3445.4,3444.0,2.3333]
[1721075526826,2.3175,3445.4,3444.7,2.90293]
[1721075528134,2.90222,3445.7,3444.8,2.90292]
[1721075528285,2.3254,3446.0,3445.4,2.90241]
[1721075528924,2.3254,3446.0,3445.2,2.90252]
[1721075529079,0.522723,3445.9,3445.2,2.90252]
[1721075529713,0.522723,3445.9,3445.3,2.9025]
[1721075530323,3.424783,3445.9,3445.0,2.90274]
[1721075531085,0.55,3445.8,3445.0,2.90274]
[1721075531298,2.3254,3446.0,3445.0,3.483298]
[1721075531587,2.3254,3446.0,3445.3,2.90249]
[1721075531814,2.3254,3446.0,3445.1,2.96070492]
[1721075531815,2.3254,3446.0,3445.4,2.90241]
[1721075532019,2.90162,3446.4,3445.5,2.90232]
[1721075532350,2.3511,3447.2,3446.2,2.90173]
[1721075532505,2.3511,3447.2,3446.5,2.90141]
[1721075533137,2.3511,3447.2,3446.3,2.90165]
[1721075533428,2.3511,3447.2,3446.4,2.90156]
[1721075533610,3.16637,3447.2,3446.4,2.90156]
[1721075534155,6.0673,3447.2,3446.2,2.90169]
[1721075534305,6.0673,3447.2,3446.3,2.90165]
[1721075534623,6.0673,3447.2,3446.4,2.90157]
[1721075535265,5.25203,3447.2,3446.4,2.90157]
[1721075536301,2.90061,3447.6,3446.6,2.90139]
[1721075536546,2.90061,3447.6,3446.5,2.90142]
[1721075536836,2.3683,3447.7,3446.8,2.90123]
[1721075537357,2.90065,3447.6,3446.6,2.90134]
[1721075537509,3.427615,3447.5,3446.7,2.90131]
[1721075538338,2.90072,3447.5,3446.7,2.90131]
[1721075539041,2.901,3447.1,3446.0,25.83185]
[1721075539242,3.635,3446.9,3446.3,2.90165]
[1721075539442,3.635,3446.9,3446.0,3.0]
[1721075539443,6.53617,3446.9,3446.0,3.0]
[1721075539648,9.59517,3446.9,3446.0,3.0]
[1721075539866,9.59517,3446.9,3446.0,5.9019]
[1721075541042,6.53617,3446.9,3446.0,5.9019]
[1721075541342,5.95982,3447.3,3446.4,2.9015]
[1721075541580,6.974302,3447.3,3446.4,2.9015]
[1721075541753,3.635,3447.4,3446.6,2.90139]
[1721075541945,3.635,3447.4,3446.7,2.90131]
[1721075542140,6.53576,3447.4,3446.5,2.90141]
[1721075542567,6.53576,3447.4,3446.0,5.90186]
[1721075542568,3.635,3447.4,3446.9,2.90113]
[1721075543383,3.635,3447.9,3447.2,2.90082]
[1721075543671,0.30356431,3448.8,3447.2,2.90082]
[1721075543672,2.61716431,3448.8,3447.8,2.90039]
[1721075543824,2.3136,3448.8,3447.8,2.90039]
[1721075544027,2.89979,3448.6,3447.7,2.90048]
[1721075544254,5.95879,3448.6,3447.7,2.90048]
[1721075544526,5.21316,3448.8,3447.7,2.90048]
[1721075544836,3.488356,3448.8,3447.8,2.95838986]
[1721075545052,3.488356,3448.8,3447.8,2.90039]
[1721075545362,3.488356,3448.8,3447.9,0.0579999]
[1721075545662,3.635,3448.9,3447.9,2.90028]
[1721075545878,6.53449,3448.9,3447.9,2.90028]
[1721075546162,2.89981,3448.5,3447.7,3.480553]
[1721075546830,2.90023,3448.0,3447.2,20.220082]
[1721075547152,2.90096,3447.2,3446.4,7.4]
[1721075547324,2.90076,3447.4,3446.1,22.83176]
[1721075547325,2.90107,3447.0,3446.1,22.83176]
[1721075547525,2.376,3447.4,3446.2,2.90173]
[1721075547739,2.376,3447.4,3446.6,2.90139]
[1721075547740,8.27674,3447.4,3446.6,2.90139]
[1721075547940,2.90096,3447.2,3446.1,19.93]
[1721075548148,2.90096,3447.2,3446.2,5.184929]
[1721075548328,2.90096,3447.2,3446.3,2.90165]
[1721075548726,3.059,3447.0,3446.1,19.93]
[1721075548957,3.635,3447.1,3446.1,19.93]
[1721075548958,3.45116,3446.9,3446.1,19.93]
[1721075549369,5.96026,3446.8,3446.1,19.93]
[1721075549549,5.376,3447.4,3445.5,7.4]
[1721075549550,2.90158,3446.4,3445.5,7.4]
[1721075549728,2.90158,3446.4,3445.6,2.90217]
[1721075550066,3.635,3446.5,3445.7,2.90215]
[1721075550296,6.53649,3446.5,3445.5,2.90226]
[1721075550465,2.90183,3446.1,3445.2,19.93]
[1721075550668,2.90183,3446.1,3445.2,25.06607]
[1721075550969,5.96092,3446.0,3445.2,22.16349]
[1721075551124,3.059,3446.0,3445.2,22.16349]
[1721075551329,2.90185,3446.1,3445.2,22.16349]
[1721075551639,2.90185,3446.1,3445.2,25.066]
[1721075551838,2.90193,3446.0,3445.3,1.00334626]
[1721075552263,3.059,3446.1,3445.3,1.00334626]
[1721075552426,6.059,3446.1,3445.3,1.00334626]
[1721075552766,3.0,3446.1,3445.5,2.90233]
[1721075553064,3.0,3446.4,3445.6,2.90222]
[1721075553278,6.53651,3446.5,3445.7,3.482595]
[1721075553279,3.635,3446.5,3445.7,3.482595]
[1721075553623,3.635,3446.5,3445.8,2.90202]
[1721075554125,3.635,3446.5,3445.8,2.90206]
[1721075554540,3.635,3446.5,3445.7,0.580455]
[1721075554743,2.90142,3446.6,3445.8,2.90207]
[1721075555267,0.005,3449.4,3446.0,2.9019]
[1721075555268,5.9913,3447.5,3446.0,2.9019]
[1721075555477,5.9913,3447.5,3445.3,1.00334626]
[1721075555478,5.9913,3447.5,3446.3,2.90165]
[1721075555678,5.9913,3447.5,3446.4,2.90156]
[1721075555828,5.9913,3447.5,3446.5,0.63834281]
[1721075556230,5.9913,3447.5,3446.6,2.90135]
[1721075556430,3.635,3447.5,3446.6,2.90135]
[1721075556850,8.80694,3448.0,3446.2,2.4559]
[1721075557087,8.80694,3448.0,3446.9,3.635]
[1721075557088,2.90034,3447.9,3446.9,3.635]
[1721075557260,3.707568,3447.9,3446.9,3.635]
[1721075557962,2.90034,3447.9,3446.9,3.635]
[1721075558369,2.2717,3448.0,3447.0,0.05801461]
[1721075558606,2.89985,3448.5,3447.2,2.90089]
[1721075558607,2.89982,3448.5,3447.2,2.90089]
[1721075558979,2.387,3448.6,3447.4,3.635]
[1721075559186,2.387,3448.6,3447.7,2.90045]
[1721075559381,2.915659,3448.6,3447.4,3.635]
[1721075559692,2.90017,3448.1,3446.9,3.635]
[1721075560059,2.90004,3448.3,3447.0,2.90106]
[1721075560255,2.8999,3448.4,3446.9,3.635]
[1721075560256,2.90008,3448.2,3446.9,3.635]
[1721075560595,2.90032,3447.9,3446.9,3.635]
[1721075560890,0.55,3447.8,3446.9,3.635]
[1721075561093,0.55,3447.8,3446.9,5.86849]
[1721075561591,0.55,3447.8,3446.8,2.90121]
[1721075561592,2.4824,3447.7,3446.7,19.93]
[1721075561806,5.38292,3447.7,3446.7,19.93]
[1721075562759,2.4824,3447.7,3446.7,19.93]
[1721075563077,5.4824,3447.7,3446.7,22.83132]
[1721075563396,5.4824,3447.7,3446.8,2.283132]
[1721075564498,5.4824,3447.7,3446.7,19.93]
[1721075564680,0.55,3447.6,3446.7,19.93]
[1721075564880,2.2746,3448.2,3446.7,19.93]
[1721075565080,0.55,3448.1,3447.0,6.53606]
[1721075565380,3.55,3448.1,3447.0,6.53606]
[1721075565571,3.55,3448.1,3447.0,7.479789]
[1721075566371,2.43,3448.9,3447.0,4.578729]
[1721075566575,2.89956,3448.8,3447.6,2.90051]
[1721075568592,2.43,3448.9,3447.7,2.90045]
[1721075568793,5.43,3448.9,3447.7,2.90045]
[1721075568965,0.83294,3448.8,3447.7,2.90045]
[1721075569365,0.55,3448.7,3447.7,2.90045]
[1721075569915,0.55,3448.7,3447.5,3.635]
[1721075570064,3.4497,3448.7,3447.5,3.635]
[1721075570414,0.55,3448.7,3447.7,2.90047]
[1721075570699,0.55,3448.7,3447.7,3.844088]
[1721075571205,0.55,3448.7,3447.7,0.943618]
[1721075571399,0.55,3448.7,3447.5,6.5356]
[1721075572271,0.55,3448.7,3447.5,3.635]
[1721075572472,5.43,3448.9,3447.5,3.635]
[1721075572473,2.43,3448.9,3447.8,2.90031]
[1721075572672,5.96306,3449.4,3448.7,3.635]
[1721075572673,0.005,3449.4,3448.7,3.635]
[1721075573669,0.005,3449.4,3448.0,19.93]
[1721075574000,0.005,3449.4,3448.2,2.90006]
[1721075574707,0.555,3449.4,3448.2,2.90006]
[1721075574875,5.3508,3449.3,3447.9,7.4]
[1721075575083,2.89936,3449.1,3447.9,7.4]
[1721075575461,0.55,3449.0,3447.9,7.4]
[1721075575669,1.240765,3448.9,3447.9,7.4]
[1721075575972,0.55,3448.8,3447.9,7.4]
[1721075576189,3.44958,3448.8,3447.9,7.4]
[1721075577107,3.44958,3448.8,3447.5,2.90065]
[1721075579671,2.89981,3448.5,3447.3,3.635]
[1721075579875,2.3603,3448.6,3446.9,22.83113]
[1721075579876,3.4499,3448.4,3446.9,22.83113]
[1721075580328,2.89998,3448.3,3447.0,2.90105]
[1721075580476,0.55,3448.2,3447.0,2.90105]
[1721075580688,2.2985,3448.1,3446.9,19.93]
[1721075580891,1.430748,3448.0,3446.9,19.93]
[1721075581091,1.430748,3448.0,3447.2,2.90087]
[1721075581278,2.2985,3448.7,3447.5,3.635]
[1721075581618,2.90411,3449.4,3447.5,3.635]
[1721075581619,2.3676,3449.3,3448.2,2.90005]
[1721075581930,2.3676,3449.3,3448.3,2.95792415]
[1721075582105,2.3676,3449.3,3448.0,6.53521]
[1721075582106,2.3676,3449.3,3448.2,2.90004]
[1721075582279,2.3676,3449.3,3448.0,6.53521]
[1721075582476,3.892071,3449.2,3447.6,19.93]
[1721075582694,2.89973,3448.6,3447.5,7.4]
[1721075583009,2.89991,3448.4,3447.0,6.53607]
[1721075583205,2.90005,3448.3,3447.0,3.635]
[1721075583519,0.55,3448.2,3447.0,3.635]
[1721075583726,0.650905,3448.1,3447.0,3.635]
[1721075584028,0.55,3448.0,3447.0,3.635]
[1721075584211,0.55,3448.0,3446.9,22.83114]
[1721075584212,2.3712,3447.9,3446.9,19.93]
[1721075584413,2.3712,3447.9,3446.8,7.4]
[1721075584414,0.55,3447.8,3446.8,2.90123]
[1721075584620,0.55,3447.8,3446.8,3.844993]
[1721075584925,0.55,3447.8,3446.8,0.943763]
[1721075585121,0.55,3447.8,3446.8,3.844973]
[1721075586615,0.55,3447.8,3446.5,6.53642]
[1721075587043,0.55,3447.8,3446.6,2.90135]
[1721075587225,0.55,3447.8,3446.5,6.53644]
[1721075587643,2.90054,3447.7,3446.5,3.635]
[1721075587819,0.55,3447.6,3446.5,3.635]
[1721075588013,0.690094,3447.5,3446.5,3.635]
[1721075588339,0.55,3447.4,3446.5,3.635]
[1721075590167,3.45074,3447.4,3446.1,7.4]
[1721075590329,0.55,3447.4,3446.1,2.9018]
[1721075590511,3.45071,3447.5,3446.2,2.91736562]
[1721075591445,0.55,3447.5,3446.2,2.91736562]
[1721075591615,0.55,3447.6,3446.3,2.90159]
[1721075591817,5.27153,3447.9,3446.5,3.635]
[1721075591818,2.3712,3447.9,3446.5,3.635]
[1721075592036,2.3712,3447.9,3446.8,2.90118]
[1721075592260,2.3712,3447.9,3446.7,2.90126]
[1721075592679,2.3712,3447.9,3446.8,2.90123]
[1721075593158,5.27153,3447.9,3446.6,3.22086064]
[1721075593364,0.55,3447.8,3446.7,3.0]
[1721075593570,1.673069,3447.8,3446.6,3.31947064]
[1721075593766,1.673069,3447.8,3446.6,6.22085064]
[1721075594462,1.673069,3447.8,3446.8,2.722]
[1721075595362,1.673069,3447.8,3446.6,2.90138]
[1721075595545,1.673069,3447.8,3446.3,2.722]
[1721075595546,0.6944599,3447.7,3446.3,2.722]
[1721075595746,5.5305,3447.6,3446.2,22.83166]
[1721075595970,3.4507,3447.5,3446.2,22.83166]
[1721075596829,2.90074,3447.4,3446.2,22.83166]
[1721075597031,0.55,3447.3,3446.3,2.722]
[1721075597253,0.5,3447.3,3446.3,5.63936562]
[1721075597457,5.90065,3447.5,3446.3,5.63936562]
[1721075597862,3.0,3447.5,3446.4,2.90153]
[1721075598043,2.4715,3447.6,3446.4,2.90153]
[1721075598044,5.4715,3447.6,3446.4,2.90153]
[1721075598680,2.9008,3447.4,3446.3,5.63936562]
[1721075598855,1.433187,3447.3,3446.3,2.722]
[1721075599331,0.55,3447.2,3446.3,2.722]
[1721075601352,5.4715,3447.6,3446.5,2.90147]
[1721075601668,3.55,3447.5,3446.4,2.90153]
[1721075601878,3.55,3447.5,3446.5,3.753992]
[1721075602239,3.55,3447.5,3446.5,0.852512]
[1721075604056,0.55,3447.5,3446.5,0.852512]
[1721075604987,2.4715,3447.6,3446.9,2.722]
[1721075605289,2.4715,3447.6,3447.0,0.562321]
[1721075605637,2.4715,3447.6,3446.9,2.722]
[1721075608854,2.0715,3447.6,3446.9,2.722]
[1721075609299,1.82032587,3448.7,3446.7,2.90131]
[1721075609300,2.89958,3448.8,3447.3,2.722]
[1721075609624,2.89931,3449.1,3447.7,2.722]
[1721075609833,0.05554764,3449.4,3448.1,5.62213]
[1721075610123,0.005,3449.4,3448.6,2.722]
[1721075610446,0.005,3449.4,3448.6,3.284188]
[1721075610801,2.90407,3449.4,3448.0,2.90017]
[1721075610981,2.8992,3449.3,3447.9,5.62229]
[1721075611326,2.8992,3449.3,3447.9,5.12229]
[1721075611525,2.89915,3449.3,3448.0,2.90022]
[1721075611822,0.005,3449.4,3448.0,2.90016]
[1721075612030,3.233394,3449.3,3448.1,0.539436]
[1721075612323,0.55,3449.2,3448.1,3.439576]
[1721075613507,0.55,3449.2,3448.2,2.90003]
[1721075613687,0.005,3449.4,3448.6,2.89965]